[Event "121st Swiss Championship 2022"]
[Site "Samnaun-Compatsch"]
[Date "2022.07.04"]
[Round "1.1"]
[White "Pavlovic, Milos"]
[Black "Neyer, Renato"]
[Result "1-0"]
[ECO "D30"]
[WhiteElo "2461"]
[BlackElo "2031"]
[Annotator "RC"]
[PlyCount "63"]
[EventDate "2022.06.28"]
[EventType "swiss"]
[EventCountry "SUI"]
[SourceTitle "playchess.com"]
[Source "ChessBase"]
[SourceQuality "1"]
[TimeControl "40/5400+30:1800+30"]

1. d4 {[%emt 0:00:08]} d5 {[%emt 0:00:19]} 2. Nf3 {[%emt 0:00:05]} Nf6 {[%emt 0:00:17]} 3. e3 {[%emt 0:02:52]} c6 {[%emt 0:02:54]} 4. c4 {[%emt 0:00:45]} e6 {[%emt 0:03:59]} 5. Bd3 {[%emt 0:03:19]} Nbd7 {[%emt 0:01:22]} 6. b3 {[%emt 0:09:04]} Be7 {[%emt 0:05:50]} 7. O-O {[%emt 0:00:11]} b6 {[%emt 0:01:43]} 8. Bb2 {[%emt 0:04:07]} Bb7 {[%emt 0:00:15]} 9. Nbd2 {[%emt 0:24:40]} O-O {[%emt 0:01:35]} 10. Qe2 {[%emt 0:00:52]} Rc8 {[%emt 0:13:11]} 11. Rad1 {[%emt 0:13:36]} Qc7 {[%emt 0:07:15]} 12. Ne5 {[%emt 0:01:48]} Nxe5 {[%emt 0:01:38]} 13. dxe5 {[%emt 0:00:07]} Nd7 {[%emt 0:00:50]} 14. f4 {[%emt 0:10:27]} f5 {[%emt 0:10:31]} 15. Nf3 {[%emt 0:03:53]} Nc5 {[%emt 0:11:24]} 16. Bc2 {[%emt 0:09:54]} Rcd8 {[%emt 0:06:02]} 17. Nd4 {[%emt 0:00:14]} Qc8 {[%emt 0:00:06]} 18. g4 {[%emt 0:00:59]} Ne4 {[%emt 0:15:40]} 19. gxf5 {[%emt 0:06:16]} exf5 {[%emt 0:00:09]} 20. cxd5 {[%emt 0:01:42]} Ba6 {[%emt 0:03:41]} 21. Bd3 {[%emt 0:00:07]} Bxd3 {[%emt 0:00:08]} 22. Qxd3 {[%emt 0:00:46]} cxd5 {[%emt 0:04:24]} 23. Rc1 {[%emt 0:00:02]} Qd7 {[%emt 0:00:27]} 24. e6 {[%emt 0:02:44]} Qe8 {[%emt 0:00:29]} 25. Rc7 {[%emt 0:00:44]} Qg6+ {[%emt 0:01:31]} 26. Kh1 {[%emt 0:00:02]} Rde8 {[%emt 0:01:16]} 27. Qe2 {[%emt 0:00:33]} Qh6 {[%emt 0:00:41]} 28. Rg1 {[%emt 0:00:10]} Bh4 {[%emt 0:00:48]} 29. Rgxg7+ {[%emt 0:01:44]} Qxg7 {[%emt 0:01:10]} 30. Rxg7+ {[%emt 0:00:02]} Kxg7 {[%emt 0:00:14]} 31. Nxf5+ {[%emt 0:00:07]} Kg8 {[%emt 0:01:31]} 32. Nh6# {[%emt 0:00:12]} 1-0

[Event "121st Swiss Championship 2022"]
[Site "Samnaun-Compatsch"]
[Date "2022.07.04"]
[Round "1.2"]
[White "Papaux, Steve"]
[Black "Baenziger, Fabian"]
[Result "0-1"]
[ECO "A28"]
[WhiteElo "2031"]
[BlackElo "2451"]
[Annotator "TA"]
[PlyCount "76"]
[EventDate "2022.06.28"]
[EventType "swiss"]
[EventCountry "SUI"]
[SourceTitle "playchess.com"]
[Source "ChessBase"]
[SourceQuality "1"]
[TimeControl "40/5400+30:1800+30"]

{[%evp 9,76,3,0,-35,-38,-36,-45,-39,-33,-35,-32,-42,-42,-61,-57,-57,-42,-51,-51,-142,-138,-133,-132,-128,-120,-132,-103,-158,-162,-171,-173,-188,-195,-182,-168,-197,-113,-121,-119,-158,-131,-166,-174,-204,-217,-250,-255,-237,-233,-434,-424,-753,-748,-733,-729,-804,-804,-804,-747,-1336,-1287,-1661,-1297,-1622,-1230,-1109,-1084,-969,-927]} 1. c4 {[%emt 0:00:02]} Nf6 {[%emt 0:02:31]} 2. Nc3 {[%emt 0:00:39]} e5 {[%emt 0:01:31]} 3. e3 {[%emt 0:03:32]} Nc6 {[%emt 0:02:32]} 4. Nf3 {[%emt 0:04:05]} Bb4 {[%emt 0:00:25]} 5. d4 {[%emt 0:01:37]} d6 {[%emt 0:07:22]} 6. dxe5 {[%emt 0:04:36] A28: English Opening: Four Knights Variation.} Bxc3+ {[%emt 0:03:41]} (6... dxe5 7. Qxd8+ Kxd8 8. Bd2 $11) 7. bxc3 {[%emt 0:00:05]} Nxe5 {[%emt 0:06:16]} 8. Nxe5 {[%emt 0:02:40] Black is slightly better.} dxe5 {[%emt 0:00:05]} 9. Qxd8+ {[%emt 0:00:42]} Kxd8 {[%emt 0:00:05]} 10. f3 {[%emt 0:03:42]} c5 {[%emt 0:08:49]} 11. e4 {[%emt 0:04:37]} Kc7 {[%emt 0:02:37]} 12. Be3 {[%emt 0:01:40]} b6 {[%emt 0:00:23] [#]} 13. Be2 $146 {[%emt 0:03:55]} ({Predecessor:} 13. a4 a5 14. Bd3 Ne8 15. Kd2 Be6 16. Kc2 Nd6 17. Kb3 Rhb8 18. Bf2 Kc6 19. Kc2 Nxc4 20. Bxc4 Bxc4 {0-1 (36) Frielingsdorf,T-Mueller Toepler,M freechess.de 2015}) 13... Be6 {[%emt 0:05:18]} 14. f4 {[%emt 0:17:13]} (14. a4 $15) 14... Nxe4 $17 {[%emt 0:06:04]} 15. Bf3 {[%emt 0:00:08] [#]} Nxc3 {[%emt 0:06:26][%cal Be4c3,Bc3a4,Ba4b2,Bb2c4][%mdl 32] Black is more active.} 16. Bxa8 {[%emt 0:00:49]} Rxa8 {[%emt 0:01:40]} 17. fxe5 {[%emt 0:23:34]} Na4 {[%emt 0:00:52]} ({Don't do} 17... Bxc4 18. Rc1 $16) 18. O-O {[%emt 0:01:42]} (18. O-O-O $142) 18... Nb2 {[%emt 0:03:10]} 19. Bf4 {[%emt 0:04:32]} Nxc4 {[%emt 0:00:34]} 20. Rfd1 {[%emt 0:00:36]} Kc6 {[%emt 0:07:09]} 21. a4 {[%emt 0:00:55]} Re8 {[%emt 0:00:28]} 22. Rd3 {[%emt 0:03:49]} Bd5 {[%emt 0:02:08]} ({Black should play} 22... a6 $19 23. g4 Bxg4) 23. Rad1 {[%emt 0:00:11]} Rd8 {[%emt 0:01:35] Hoping for ...Nb2.} 24. Re1 {[%emt 0:00:13][%cal Oe5e6]} Rd7 {[%emt 0:01:17]} 25. Rg3 {[%emt 0:01:25]} g6 {[%emt 0:00:05]} 26. h4 {[%emt 0:01:08]} Be6 {[%emt 0:02:37]} 27. h5 {[%emt 0:00:49]} Nb2 {[%emt 0:03:27]} ({Weaker is} 27... gxh5 28. Rg7) 28. hxg6 {[%emt 0:01:33]} hxg6 {[%emt 0:00:07]} ({And not} 28... fxg6 29. Ra1) 29. a5 $2 {[%emt 0:01:41]} (29. Ra1) 29... Nd3 $19 {[%emt 0:01:01] Black is clearly winning.} 30. Rf1 {[%emt 0:00:09]} (30. Rxd3 $142 Rxd3 31. axb6 axb6 32. Kf2) 30... Nxf4 {[%emt 0:00:24]} 31. Rxf4 {[%emt 0:00:01][%mdl 4096] Endgame KRR-KRB} b5 {[%emt 0:00:08][%cal Bb6b5,Bb5b4,Bb4b3,Bb3b2][%mdl 32]} 32. Ra3 {[%emt 0:02:18]} b4 {[%emt 0:00:26]} 33. Ra1 {[%emt 0:00:06]} c4 {[%emt 0:00:47][%cal Bc5c4,Bc4c3][%mdl 32]} 34. g4 {[%emt 0:01:23]} b3 {[%emt 0:01:03] [#] White must now prevent ...c3.} 35. Kf2 {[%emt 0:00:37]} Kb5 {[%emt 0:00:31]} 36. Ke3 {[%emt 0:00:47]} b2 {[%emt 0:00:43]} 37. Rb1 {[%emt 0:00:04]} c3 {[%emt 0:00:04] aiming for ...Ba2.} 38. Rf2 {[%emt 0:00:15]} Kxa5 {[%emt 0:00:44] Weighted Error Value: White=0.69/Black=0.18 (very precise)} 0-1

[Event "121st Swiss Championship 2022"]
[Site "Samnaun-Compatsch"]
[Date "2022.07.04"]
[Round "1.3"]
[White "Gallagher, Joseph G."]
[Black "Arquint, Andri"]
[Result "1-0"]
[ECO "B28"]
[WhiteElo "2447"]
[BlackElo "2019"]
[Annotator "TA"]
[PlyCount "77"]
[EventDate "2022.06.28"]
[EventType "swiss"]
[EventCountry "SUI"]
[SourceTitle "playchess.com"]
[Source "ChessBase"]
[SourceQuality "1"]
[TimeControl "40/5400+30:1800+30"]

{[%evp 9,77,69,76,3,5,0,8,-5,0,0,0,0,6,14,14,27,22,14,15,0,0,0,0,0,14,11,23,11,95,93,107,110,112,86,99,83,98,90,109,94,102,109,129,110,133,123,229,216,372,354,524,508,659,644,702,680,1159,1116,2443,2462,2403,2381,29976,29977,29989,29989,29993,29991,29991,29991]} 1. e4 {[%emt 0:00:04]} c5 {[%emt 0:00:10]} 2. Nf3 {[%emt 0:00:07]} a6 {[%emt 0:00:46]} 3. c3 {[%emt 0:01:35]} Qc7 {[%emt 0:01:17]} 4. d4 {[%emt 0:02:21]} d6 {[%emt 0:00:48]} 5. h3 {[%emt 0:07:22]} e5 {[%emt 0:04:01]} 6. dxe5 {[%emt 0:04:10] B28: Sicilian: 2 Nf3 a6 (O'Kelly Variation).} (6. Be3 $16) 6... dxe5 $11 {[%emt 0:00:10] [#]} 7. a4 $146 {[%emt 0:00:07]} ({Predecessor:} 7. Bc4 Nc6 8. O-O Be7 9. Bd5 Nf6 10. Nbd2 O-O 11. Qe2 Nd8 12. Nc4 Nxd5 13. exd5 {1-0 (85) Jenni,F (2467)-Arquint,A (1957) Graechen 2017}) 7... Nf6 {[%emt 0:03:25]} 8. Qc2 {[%emt 0:01:07] The position is equal.} Nc6 {[%emt 0:05:01]} 9. Bg5 {[%emt 0:03:18]} Be7 {[%emt 0:00:54]} 10. Nbd2 {[%emt 0:00:07]} Rb8 {[%emt 0:05:21]} 11. Nc4 {[%emt 0:06:47]} h6 {[%emt 0:09:38]} 12. Bxf6 {[%emt 0:03:25]} Bxf6 {[%emt 0:00:40]} 13. a5 {[%emt 0:00:51]} Be6 {[%emt 0:02:47]} 14. Nfd2 {[%emt 0:06:37]} O-O {[%emt 0:03:58]} 15. Be2 {[%emt 0:02:37]} Bg5 {[%emt 0:06:05]} 16. Nb3 {[%emt 0:00:39]} Be7 {[%emt 0:09:39]} 17. O-O {[%emt 0:02:43]} Rbd8 {[%emt 0:00:44]} 18. Ne3 {[%emt 0:19:59]} Rd7 {[%emt 0:14:06]} (18... Bg5 $11) 19. Bc4 $16 {[%emt 0:01:55]} Bxc4 {[%emt 0:02:21]} 20. Nxc4 {[%emt 0:00:02]} Rdd8 {[%emt 0:13:14]} 21. Qe2 {[%emt 0:02:50]} Rfe8 {[%emt 0:01:42]} 22. Ne3 {[%emt 0:02:16]} Bf8 {[%emt 0:00:55]} 23. Nd5 {[%emt 0:04:37]} Qd6 {[%emt 0:00:44]} 24. Rfd1 {[%emt 0:03:05] White is more active.} Qg6 {[%emt 0:01:17]} 25. Qc4 {[%emt 0:02:42]} Kh8 {[%emt 0:04:59]} 26. Ne3 {[%emt 0:02:26]} Qe6 {[%emt 0:03:57]} 27. Rd5 {[%emt 0:01:07]} g6 {[%emt 0:03:40]} (27... Qc8 $16 28. Nxc5 Rxd5 29. exd5 Nxa5 30. Rxa5 b5) 28. Nxc5 $18 {[%emt 0:07:28][%cal Bb3c5,Bc5b7,Bb7d6][%mdl 32]} Qe7 {[%emt 0:01:07] [#]} (28... Qc8 {keeps fighting.} 29. Na4 Kg7) 29. b4 {[%emt 0:00:41]} h5 {[%emt 0:00:16]} (29... Qc7 $142 30. Rad1 Bxc5) 30. Rad1 {[%emt 0:01:22]} Bh6 {[%emt 0:00:20]} 31. Rxd8 {[%emt 0:01:28]} Rxd8 {[%emt 0:00:14]} 32. Nd5 {[%emt 0:00:22]} Qh4 {[%emt 0:01:38]} 33. Nxb7 {[%emt 0:00:15] Pair of Knights!} Rd7 {[%emt 0:00:13]} 34. Qxc6 {[%emt 0:00:12]} Rxd5 {[%emt 0:00:25]} 35. Qxd5 {[%emt 0:00:08]} Qf4 {[%emt 0:00:36]} 36. Nd6 {[%emt 0:00:22] White mates.} Kg7 {[%emt 0:00:13]} 37. b5 {[%emt 0:00:22]} g5 {[%emt 0:00:25]} 38. bxa6 {[%emt 0:00:15]} g4 {[%emt 0:00:17]} 39. Qxf7+ {[%emt 0:00:05] Weighted Error Value: White=0.07 (flawless) /Black=0.51} 1-0

[Event "121st Swiss Championship 2022"]
[Site "Samnaun-Compatsch"]
[Date "2022.07.04"]
[Round "1.4"]
[White "Manko, Mariya"]
[Black "Gschnitzer, Adrian"]
[Result "0-1"]
[ECO "E02"]
[WhiteElo "2014"]
[BlackElo "2433"]
[Annotator "TA"]
[PlyCount "156"]
[EventDate "2022.06.28"]
[EventType "swiss"]
[EventCountry "SUI"]
[SourceTitle "playchess.com"]
[Source "ChessBase"]
[SourceQuality "1"]
[TimeControl "40/5400+30:1800+30"]

{[%evp 17,156,0,0,0,5,0,-2,-13,0,-25,-2,-12,-9,-12,-11,-20,-16,-11,-30,-34,0,0,0,14,35,45,92,97,89,82,82,81,79,55,82,45,36,18,18,23,27,31,212,237,219,199,378,388,404,393,389,382,536,520,500,506,509,493,611,568,613,240,219,0,240,239,239,239,245,206,205,181,439,416,414,125,160,128,186,183,192,187,371,377,364,298,284,318,331,298,683,729,647,124,613,567,463,0,0,0,0,0,0,-45,0,-410,0,-761,-497,-935,-935,-796,-641,-1161,-1017,-1064,-977,-1021,-912,-29971,-29970,-29972,0,0,0,-29972,-29973,-29973,-29974,-29974,-29973,-29973,-29974,-29979,-29980,-29980,-29980,-29980,-29981,-29993,-957]} 1. Nf3 {[%emt 0:00:11]} d5 {[%emt 0:00:34]} 2. d4 {[%emt 0:00:09]} Nf6 {[%emt 0:00:10]} 3. c4 {[%emt 0:00:06]} e6 {[%emt 0:00:11]} 4. g3 {[%emt 0:00:59]} dxc4 {[%emt 0:00:41]} 5. Qa4+ {[%emt 0:04:59]} Nbd7 {[%emt 0:07:06]} 6. Bg2 {[%emt 0:03:33]} a6 {[%emt 0:01:19]} 7. Nc3 {[%emt 0:01:03]} Rb8 {[%emt 0:05:03]} 8. Qxc4 {[%emt 0:02:53]} b5 {[%emt 0:00:33]} 9. Qd3 {[%emt 0:00:27]} Bb7 {[%emt 0:00:38]} 10. Bf4 {[%emt 0:06:45] E02: Open Catalan: 5 Qa4+.} Bd6 {[%emt 0:04:35]} (10... Rc8 {is more complex.} 11. O-O c5 12. dxc5 Bxc5 13. Ne5 Bxg2 14. Kxg2 Nxe5 15. Qxd8+ Rxd8 16. Bxe5 Ke7) 11. Bxd6 {[%emt 0:06:22]} cxd6 {[%emt 0:00:30]} 12. O-O {[%emt 0:00:09] The position is equal.} O-O {[%emt 0:02:49] [#]} 13. Rfe1 $146 {[%emt 0:00:38]} ({Predecessor:} 13. Rfc1 Nb6 14. Nd2 Qd7 15. b3 Rfc8 16. Bxb7 Rxb7 17. e4 Rbc7 18. Kg2 h6 19. Ne2 Rxc1 20. Rxc1 Rxc1 21. Nxc1 {½-½ (36) Brzoza,M (2278)-Binder,K ICCF email 2009}) 13... b4 {[%emt 0:17:22]} 14. Nb1 {[%emt 0:01:17]} Qc7 {[%emt 0:01:12]} (14... e5 {looks sharper.} 15. Ng5 Bxg2 16. Kxg2 h6) 15. Nbd2 {[%emt 0:07:04]} Rfc8 {[%emt 0:02:11]} 16. a3 {[%emt 0:03:17]} b3 {[%emt 0:05:50]} 17. Nxb3 {[%emt 0:06:25]} Be4 {[%emt 0:04:49]} 18. Qe3 {[%emt 0:00:21]} Qc2 {[%emt 0:09:24]} (18... Bc2 $15 {is more appropriate.} 19. Nc1 (19. Nfd2 Qb6 $15) 19... Nb6) 19. Nfd2 $11 {[%emt 0:08:33][%cal Rg2e4]} Bxg2 {[%emt 0:02:43]} 20. Kxg2 {[%emt 0:00:13]} Nd5 {[%emt 0:02:45]} 21. Qd3 {[%emt 0:01:31]} Qc6 {[%emt 0:15:52]} (21... Qxd3 $14 {should be considered.} 22. exd3 Rb5) 22. e4 $16 {[%emt 0:05:27]} Ne7 {[%emt 0:00:06]} 23. Rac1 {[%emt 0:04:37]} Qb6 {[%emt 0:00:21]} 24. Rc3 {[%emt 0:02:54]} d5 {[%emt 0:02:21]} 25. e5 {[%emt 0:02:46]} a5 {[%emt 0:00:29]} 26. Rec1 {[%emt 0:05:39]} Rxc3 {[%emt 0:07:27]} 27. Qxc3 {[%emt 0:05:14] Black must now prevent Qc7.} a4 {[%emt 0:00:01]} 28. Nc5 $36 {[%emt 0:00:24][%mdl 2048] Black is under pressure.} (28. Qc7 {with more complications.} Qb5 29. Nc5 Nxc5 30. Rxc5 Qxb2 31. Qxe7 Qxd2 32. Rb5) 28... Nxc5 {[%emt 0:00:54]} 29. dxc5 {[%emt 0:03:14]} Qb7 {[%emt 0:02:47]} (29... Qa6 $1 $14) 30. c6 $18 {[%emt 0:06:24]} Qc7 {[%emt 0:00:01]} 31. Nf3 {[%emt 0:00:09]} Rc8 $2 {[%emt 0:00:57]} (31... g6 32. Qc5 Nc8) 32. Qb4 {[%emt 0:06:17]} Nxc6 {[%emt 0:01:00]} 33. Qxa4 {[%emt 0:00:06]} Qb7 {[%emt 0:00:51]} 34. b4 {[%emt 0:00:14][%cal Bb2b4,Bb4b5][%mdl 32]} h6 {[%emt 0:00:56]} (34... Kf8 $142 35. b5 Ne7 36. Rxc8+ Qxc8) 35. b5 {[%emt 0:00:13][%cal Rc1c6]} Ne7 {[%emt 0:00:41]} 36. Rxc8+ {[%emt 0:00:05]} Nxc8 {[%emt 0:00:25][%mdl 4096] Endgame KQN-KQN} 37. Qb4 {[%emt 0:01:04]} Nb6 {[%emt 0:01:02]} 38. a4 {[%emt 0:00:49]} Nc4 {[%emt 0:00:44]} 39. Qc5 {[%emt 0:03:16] Against Qa7} (39. Nd4) 39... Qa8 {[%emt 0:01:02]} 40. Qb4 {[%emt 0:02:05]} (40. Qe7 $18) 40... Qa7 $2 {[%emt 0:00:38]} (40... Qb7 $1 $11 {and Black is okay.}) 41. Kg1 {[%emt 0:30:36]} g6 {[%emt 0:13:46]} 42. h4 {[%emt 0:00:00]} Kg7 {[%emt 0:02:32]} 43. Kg2 {[%emt 0:00:00]} Kg8 {[%emt 0:01:08]} 44. Qb3 {[%emt 0:00:00]} Qa5 $2 {[%emt 0:01:56]} (44... Kf8 45. Qb4+ Kg8) 45. Nd4 {[%emt 0:00:00] Threatens to win with Nc6.} Nb6 {[%emt 0:01:52] [#]} 46. Nc6 $2 {[%emt 0:00:00]} (46. Nxe6 $1 $18 {[%mdl 512]} Qxa4 47. Qxa4 Nxa4 48. Nc7) 46... Qxa4 $16 {[%emt 0:00:35]} 47. Ne7+ {[%emt 0:00:00]} Kf8 {[%emt 0:00:59]} (47... Kg7 $16 48. Qxa4 Nxa4) 48. Qxa4 $18 {[%emt 0:00:00]} Nxa4 {[%emt 0:00:04] KN-KN} 49. Nc8 {[%emt 0:00:00]} h5 $2 {[%emt 0:05:00]} (49... Ke8 {was necessary.}) 50. b6 {[%emt 0:00:00] White wants to mate with b7.} Nc5 {[%emt 0:00:01]} 51. Nd6 {[%emt 0:00:00]} Ke7 {[%emt 0:00:51]} 52. b7 $1 {[%emt 0:00:00]} Nd7 {[%emt 0:01:37]} 53. f4 $1 {[%emt 0:00:00]} f5 $2 {[%emt 0:01:25]} (53... Nb8 54. Kf3 Nc6) 54. Kf3 {[%emt 0:00:00]} Nb8 {[%emt 0:01:10]} 55. Ke3 $2 {[%emt 0:00:00]} (55. Nb5 $1 $18 {is the precise move to win.} Kd8 56. Nd4) 55... Nc6 $2 {[%emt 0:00:02][%mdl 8192]} (55... Kd7 $16) 56. Kd3 {[%emt 0:00:00]} Kd7 {[%emt 0:00:18]} 57. Kd2 $2 {[%emt 0:02:15]} ({White has to play} 57. Nb5 $18) 57... Kc7 $11 {[%emt 0:00:18]} 58. Kc3 {[%emt 0:00:11]} Nd8 {[%emt 0:01:19]} 59. Kb4 {[%emt 0:03:31] And now Nb5+ would win.} Nxb7 {[%emt 0:01:02]} 60. Nf7 {[%emt 0:02:53]} Nd8 {[%emt 0:01:20]} 61. Ng5 $2 {[%emt 0:00:35][%mdl 8192]} (61. Nxd8 $11 Kxd8 62. Kc5) 61... Kb6 $1 $19 {[%emt 0:00:31]} 62. Kc3 $2 {[%emt 0:00:21][%mdl 8192]} (62. Kb3 $11) 62... Kc5 {[%emt 0:00:18]} 63. Kd3 {[%emt 0:00:03] [#]} (63. Nf3 $142 Nc6 64. Kd3) 63... d4 $1 {[%emt 0:00:29]} 64. Nh7 {[%emt 0:01:14]} Nc6 {[%emt 0:01:10]} 65. Nf8 {[%emt 0:00:38]} Nb4+ {[%emt 0:00:36]} 66. Kd2 {[%emt 0:00:09]} Kd5 {[%emt 0:00:23]} 67. Nxg6 {[%emt 0:00:08] [#]} Na6 $1 {[%emt 0:00:43] Strongly threatening ...Nc5.} 68. Nf8 {[%emt 0:01:25]} Nc5 {[%emt 0:00:18]} 69. Nh7 {[%emt 0:00:03]} Ne4+ $2 {[%emt 0:00:57]} (69... Kc4 {mates} 70. Ng5 d3 71. Nf3 Ne4+ 72. Ke1 Kc3 73. Kd1 Nxg3 74. Ng5 Ne4 75. Nf3 d2 76. Ke2 Kc4 77. Nxd2+ Nxd2 78. Kxd2 Kd4 79. Kc2 Ke4 80. Kc3 Kxf4 81. Kd4 Kg4 82. Kc5 f4 83. Kd6 Kf5 84. Kc5 f3 85. Kd6 f2 86. Kc5 f1=Q 87. Kb4 Kxe5 88. Kc5 Qc1+ 89. Kb6 Qc4 90. Kb7 Kd6 91. Kb6 Qb4+ 92. Ka6 Kc6 93. Ka7 Qb7#) 70. Kd3 $11 {[%emt 0:00:05]} Nc5+ $2 {[%emt 0:00:03][%mdl 8192]} (70... Nxg3 $11 71. Nf6+ Kc5) 71. Kd2 $1 {[%emt 0:00:34]} Kc4 {[%emt 0:00:02] Black mates.} 72. Ng5 {[%emt 0:01:27]} d3 {[%emt 0:00:56][%cal Bd4d3,Bd3d2][%mdl 32]} 73. Nf3 {[%emt 0:01:19]} Nb3+ {[%emt 0:01:01]} 74. Kd1 {[%emt 0:00:27]} Kc3 {[%emt 0:00:32]} 75. Nh2 {[%emt 0:01:08]} Nd2 {[%emt 0:00:59]} 76. Kc1 {[%emt 0:00:19]} Nc4 {[%emt 0:00:38]} 77. Nf3 {[%emt 0:00:29]} d2+ {[%emt 0:00:09]} 78. Kd1 {[%emt 0:00:03]} Nb2+ {[%emt 0:00:13] Weighted Error Value: White=0.42/Black=0.63} 0-1

[Event "121st Swiss Championship 2022"]
[Site "Samnaun-Compatsch"]
[Date "2022.07.04"]
[Round "1.5"]
[White "Gaehwiler, Gabriel"]
[Black "Balzer, Lars"]
[Result "1-0"]
[ECO "B12"]
[WhiteElo "2420"]
[BlackElo "2012"]
[Annotator "TA"]
[PlyCount "99"]
[EventDate "2022.06.28"]
[EventType "swiss"]
[EventCountry "SUI"]
[SourceTitle "playchess.com"]
[Source "ChessBase"]
[SourceQuality "1"]
[TimeControl "40/5400+30:1800+30"]

{[%evp 10,99,33,16,40,14,34,14,25,19,22,-39,-28,-66,-59,-77,-68,-78,-45,-36,-23,-68,-24,-69,-27,-34,-27,-63,-4,-79,-68,-81,-90,-88,-50,-64,-61,-154,21,-71,0,-32,6,-14,19,-59,0,0,0,5,48,41,77,66,152,124,169,0,156,0,167,155,162,169,169,148,245,238,247,233,233,158,301,307,278,301,300,272,272,281,620,618,683,550,29977,29978,29976,29977,29976,29977,29997,29998]} 1. d4 {[%emt 0:00:06]} g6 {[%emt 0:00:15]} 2. e4 {[%emt 0:09:11]} c6 {[%emt 0:01:11]} 3. Nf3 {[%emt 0:01:02]} d5 {[%emt 0:00:10]} 4. Nc3 {[%emt 0:00:39]} Bg7 {[%emt 0:01:50]} 5. Bd3 {[%emt 0:04:37]} dxe4 {[%emt 0:06:12]} 6. Nxe4 {[%emt 0:00:20]} Nf6 {[%emt 0:00:45] B12: Caro-Kann: Advance Variation.} 7. c3 {[%emt 0:13:37]} O-O {[%emt 0:01:11]} 8. Bf4 {[%emt 0:08:49]} Nbd7 {[%emt 0:07:57] [#] The position is equal.} 9. Nxf6+ $146 {[%emt 0:03:58]} ({Predecessor:} 9. O-O Nxe4 10. Bxe4 Nf6 11. Bd3 Nh5 12. Bg5 Qc7 13. Re1 Be6 14. Ne5 c5 15. Be3 Rad8 {0-1 (42) Bartoszek,M (1884)-Polok,K (2155) Suchedniow 2012}) 9... exf6 {[%emt 0:06:28]} 10. h4 {[%emt 0:04:25]} (10. O-O $11) 10... Re8+ $15 {[%emt 0:04:43]} 11. Kf1 {[%emt 0:04:39]} h5 {[%emt 0:02:50]} 12. Qd2 {[%emt 0:09:34]} Nb6 {[%emt 0:04:53]} 13. Bh6 {[%emt 0:01:19]} Bh8 {[%emt 0:05:54]} 14. Ng1 {[%emt 0:04:40]} Qd5 {[%emt 0:04:16]} 15. Qc2 {[%emt 0:01:45][%cal Od3g6]} Kh7 {[%emt 0:03:52]} 16. Bc1 {[%emt 0:04:47]} Be6 {[%emt 0:10:13]} (16... Qe6 17. Ne2 $11 (17. Qd2 Qd5 $11)) 17. Ne2 {[%emt 0:02:24]} f5 {[%emt 0:04:23]} 18. b3 {[%emt 0:06:28]} Qd8 {[%emt 0:04:09]} (18... c5 $15) 19. Bb2 {[%emt 0:04:08]} (19. Bg5 $11 Bf6 20. Qd2) 19... Nd5 $17 {[%emt 0:02:12]} 20. a3 {[%emt 0:02:48]} Qc7 {[%emt 0:03:48]} 21. g3 {[%emt 0:01:00]} Rad8 {[%emt 0:01:38]} 22. c4 {[%emt 0:00:50]} Nf6 {[%emt 0:00:36]} 23. f3 {[%emt 0:00:33]} (23. Kg2 $1 $15) 23... Bc8 $2 {[%emt 0:03:57]} (23... c5 $1 $17 {[%cal Ob7b5] White must now prevent ...b5!} 24. Kg2 (24. d5 $2 Bxd5 25. Bxf6 Bxf6 $19) 24... cxd4) 24. Kf2 {[%emt 0:00:59] [#]} (24. Kg2 $11 {remains equal.}) 24... Bg7 {[%emt 0:02:09]} ({Much weaker is} 24... Qe7 25. Nf4 $11) (24... Nd7 $1 $17) 25. Rhe1 {[%emt 0:00:25]} Re7 {[%emt 0:02:04]} ({Much worse is} 25... Qe7 26. Nf4 Qd6 27. Kg2 $14) 26. Nf4 {[%emt 0:01:22]} Rde8 {[%emt 0:00:49]} 27. Bc3 {[%emt 0:00:53]} ({Better is} 27. Rad1 $11) 27... Qd8 {[%emt 0:03:00]} (27... Rxe1 $1 $15 28. Rxe1 Rxe1 29. Bxe1 Qd6) 28. Rxe7 $11 {[%emt 0:00:54]} Rxe7 {[%emt 0:00:11]} 29. Rd1 {[%emt 0:00:30][%cal Od4d5]} Ne8 {[%emt 0:03:48]} 30. d5 {[%emt 0:01:58]} Qb6+ {[%emt 0:04:06]} 31. Kg2 {[%emt 0:00:26][%cal Od5d6] Hoping for d6! Active counter play!} Bh6 {[%emt 0:01:47]} (31... Bxc3 $14 32. Qxc3 Qe3) 32. Bd2 {[%emt 0:02:33]} Nf6 {[%emt 0:03:18]} 33. Bc3 {[%emt 0:03:09]} Ne8 {[%emt 0:00:37]} 34. Bd2 {[%emt 0:00:49]} Nf6 $1 {[%emt 0:00:01]} 35. c5 $36 {[%emt 0:00:42][%mdl 2048] White has strong initiative.} Qd8 {[%emt 0:00:01]} 36. d6 {[%emt 0:00:12][%cal Bd5d6,Bd6d7][%mdl 32]} Re8 {[%emt 0:00:20]} 37. Bc4 {[%emt 0:00:33]} Be6 {[%emt 0:01:00]} (37... Bxf4 $16 38. Bxf4 Nd5) 38. Nxe6 {[%emt 0:00:31]} fxe6 {[%emt 0:00:01]} 39. Bxh6 {[%emt 0:00:45]} Kxh6 {[%emt 0:00:04]} 40. Qe2 {[%emt 0:01:09] d7 is the strong threat.} e5 {[%emt 0:02:40] [#]} (40... Nd7 $16 {was called for.} 41. b4 Qf6) 41. d7 $1 $18 {[%emt 0:14:27]} Re7 {[%emt 0:03:07]} 42. Rd6 {[%emt 0:00:58]} Rxd7 {[%emt 0:16:05]} 43. Qxe5 {[%emt 0:03:28]} Rxd6 {[%emt 0:02:30]} 44. cxd6 {[%emt 0:04:11][%mdl 4096] Endgame KQB-KQN} b5 $2 {[%emt 0:03:13]} (44... Nd7 45. Qe7 Qh8) 45. Be6 {[%emt 0:02:15]} Nh7 {[%emt 0:04:37]} 46. Bf7 {[%emt 0:04:27] Threatens to win with Qe7.} Qa5 {[%emt 0:00:58]} 47. Qe6 {[%emt 0:01:51][%csl Gf7][%cal Re6g6] White mates.} Qd2+ {[%emt 0:00:17]} 48. Kh3 {[%emt 0:00:16][%csl Gf7][%cal Re6g6]} Nf8 {[%emt 0:00:48]} 49. Qe7 $1 {[%emt 0:00:23][%csl LRa7,LRf8]} Nh7 {[%emt 0:00:50]} 50. Bg8 {[%emt 0:00:28] Weighted Error Value: White=0.33/Black=0.48} 1-0